bitfinex/quotes_SOLUSD_20250726
["timestamp","ask_amount","ask_price","bid_price","bid_amount"]
[1753554444765,0.71,186.13,186.11,43.33316487]
[1753554446659,0.03,186.13,186.11,43.33316487]
[1753554454289,0.03,186.13,186.12,0.69]
[1753554456566,0.03,186.13,186.12,6.06287771]
[1753554456769,0.03,186.13,186.12,11.0341059]
[1753554457178,0.03,186.13,186.12,5.37287771]
[1753554461174,0.71,186.13,186.12,5.37287771]
[1753554462277,0.71,186.13,186.11,43.33308275]
[1753554463903,0.03,186.13,186.11,43.33308275]
[1753554464080,0.68,186.12,186.11,43.33308275]
[1753554467283,0.03,186.13,186.11,43.33308275]
[1753554467503,0.71,186.13,186.11,43.33308275]
[1753554467693,0.03,186.13,186.11,44.02308275]
[1753554468187,0.03,186.13,186.11,43.33308275]
[1753554469903,0.71,186.13,186.11,43.33308275]
[1753554472209,0.03,186.13,186.11,43.33308275]
[1753554474906,0.72,186.13,186.11,43.33308275]
[1753554475611,0.03,186.13,186.11,43.33308275]
[1753554476900,0.03,186.13,186.08,0.06]
[1753554476901,5.66122819,186.12,186.08,0.06]
[1753554477086,4.97122819,186.09,186.08,0.06]
[1753554477283,4.97122819,186.09,186.08,37.98]
[1753554477502,5.66122819,186.09,186.08,37.98]
[1753554478794,5.66122819,186.09,186.08,0.06]
[1753554479408,5.3733403,186.11,186.08,0.06]
[1753554479409,0.69,186.11,186.08,0.06]
[1753554479631,0.69,186.11,186.09,37.92]
[1753554479800,5.66122819,186.11,186.09,37.92]
[1753554480919,5.66122819,186.11,186.09,43.29357731]
[1753554481731,0.03,186.13,186.09,43.29357731]
[1753554481896,0.03,186.13,186.1,5.67122819]
[1753554482222,0.03,186.13,186.11,37.9]
[1753554482599,0.03,186.13,186.11,38.6]
[1753554482797,0.03,186.13,186.12,5.37287771]
[1753554483196,5.69122819,186.13,186.09,89.96999996]
[1753554483394,0.69,186.12,186.1,37.9]
[1753554483622,5.00122819,186.13,186.1,37.9]
[1753554483822,0.69,186.11,186.1,37.9]
[1753554486018,5.00122819,186.13,186.1,43.27340895]
[1753554486224,5.69122819,186.13,186.1,43.27340895]
[1753554487025,0.72,186.13,186.1,43.27340895]
[1753554487923,5.69122819,186.13,186.1,43.27340895]
[1753554492926,0.03,186.13,186.1,43.97340895]
[1753554495213,0.03,186.13,186.11,0.7]
[1753554495434,0.03,186.13,186.12,37.9]
[1753554495817,0.03,186.13,186.12,38.6]
[1753554496807,0.03,186.13,186.12,43.97287771]
[1753554497138,0.03,186.13,186.12,43.27287771]
[1753554498533,0.03,186.13,186.12,37.9]
[1753554498736,0.72,186.13,186.12,37.9]
[1753554499437,0.03,186.13,186.12,37.9]
[1753554500824,5.69122819,186.13,186.12,37.9]
[1753554501926,5.69122819,186.13,186.08,0.06]
[1753554502237,4.97122819,186.09,186.08,0.06]
[1753554502445,4.97122819,186.09,186.08,37.94]
[1753554502747,5.66122819,186.09,186.08,37.94]
[1753554503044,5.66122819,186.09,186.08,0.06]
[1753554503045,0.69,186.09,186.08,0.06]
[1753554503241,6.19871811,186.09,186.08,0.06]
[1753554504741,11.57246199,186.09,186.08,0.06]
[1753554508639,11.57246199,186.09,186.04,0.06]
[1753554508932,4.97122819,186.05,186.04,0.06]
[1753554509313,5.63122819,186.05,186.04,0.06]
[1753554509847,0.53748992,186.07,186.04,0.06]
[1753554510031,4.97122819,186.08,186.05,0.72]
[1753554510227,0.53748992,186.09,186.05,0.72]
[1753554510228,5.50871811,186.09,186.05,0.72]
[1753554510434,4.97122819,186.08,186.05,0.72]
[1753554510933,5.63122819,186.08,186.04,5.43514697]
[1753554511524,5.63122819,186.08,186.04,6.15514697]
[1753554513530,4.97122819,186.07,186.04,6.15514697]
[1753554514043,4.97122819,186.08,186.05,0.72]
[1753554514634,4.97122819,186.08,186.05,38.6]
[1753554517953,0.53748992,186.09,186.06,0.72]
[1753554518145,4.97122819,186.09,186.06,0.72]
[1753554519148,4.97122819,186.08,186.05,43.25488979]
[1753554519349,4.97122819,186.08,186.05,43.97488979]
[1753554519551,5.63122819,186.09,186.05,43.97488979]
[1753554520250,5.63122819,186.09,186.05,43.25488979]
[1753554521257,5.63122819,186.09,186.05,43.97488979]
[1753554521754,4.97122819,186.09,186.06,0.72]
[1753554521928,5.50871811,186.1,186.06,6.0945174]
[1753554522132,6.16871811,186.1,186.06,6.0945174]
[1753554522351,6.16871811,186.1,186.06,0.72]
[1753554523037,5.50871811,186.1,186.07,0.72]
[1753554523945,6.16871811,186.1,186.05,43.97482455]
[1753554524347,6.16871811,186.1,186.06,0.72]
[1753554525860,6.16871811,186.1,186.06,6.0944742]
[1753554526735,5.50871811,186.1,186.06,6.0944742]
[1753554526936,0.66,186.09,186.06,6.0944742]
[1753554527453,0.66,186.08,186.05,43.25481744]
[1753554527747,5.63122819,186.09,186.05,43.97481744]
[1753554530464,0.66,186.09,186.05,43.97481744]
[1753554531461,5.63122819,186.09,186.05,43.97481744]
[1753554532166,0.66,186.08,186.05,43.97481744]
[1753554532661,5.63122819,186.09,186.05,43.97481744]
[1753554533955,5.63122819,186.09,186.05,43.25481744]
[1753554534255,5.63122819,186.09,186.06,0.72]
[1753554534554,5.63122819,186.09,186.05,43.97481744]
[1753554535465,0.66,186.09,186.05,43.25481744]
[1753554535667,5.50871811,186.1,186.06,0.72]
[1753554536169,6.21871811,186.1,186.06,0.72]
[1753554536750,6.21871811,186.1,186.06,6.09460584]
[1753554536956,5.50871811,186.1,186.06,6.09460584]
[1753554537159,0.71,186.09,186.06,6.09460584]
[1753554537468,5.50871811,186.1,186.06,6.09460584]
[1753554537875,5.68122819,186.09,186.06,5.37460584]
[1753554538090,5.68122819,186.09,186.06,6.09460584]
[1753554538253,0.71,186.09,186.06,6.09460584]
[1753554539778,0.71,186.09,186.06,5.37460584]
[1753554544565,0.71,186.09,186.06,6.09460584]
[1753554544765,0.53748992,186.11,186.06,5.37460584]
[1753554544978,0.03,186.12,186.08,3.17835486]
[1753554545179,0.03,186.12,186.09,41.75835486]
[1753554545485,0.03,186.12,186.1,37.86]
[1753554545784,0.03,186.12,186.1,38.58]
[1753554546884,0.03,186.12,186.1,43.95329698]
[1753554548189,0.03,186.12,186.11,0.72]
[1753554548396,0.03,186.12,186.11,6.0931664]
[1753554549093,0.03,186.12,186.11,5.3731664]
[1753554549675,0.03,186.12,186.11,6.0931664]
[1753554550192,0.03,186.12,186.11,11.05660745]
[1753554555180,0.03,186.12,186.11,6.0931664]
[1753554556660,0.03,186.12,186.11,5.3731664]
[1753554561867,0.03,186.12,186.11,6.0931664]
[1753554564185,0.03,186.12,186.11,11.05660745]
[1753554564505,0.03,186.12,186.11,11.34093059]
[1753554568090,0.03,186.12,186.11,101.31093055]
[1753554568580,0.03,186.12,186.11,101.84824719]
[1753554568782,0.03,186.12,186.11,100.05991943]
[1753554571701,0.03,186.12,186.11,137.87991943]
[1753554571902,0.03,186.12,186.11,99.52260279]
[1753554572087,0.03,186.12,186.11,137.87991943]
[1753554572283,0.03,186.12,186.11,137.34260279]
[1753554572490,0.03,186.12,186.11,136.62260279]
[1753554573385,0.03,186.12,186.11,98.80260279]
[1753554573707,0.03,186.12,186.11,136.62260279]
[1753554573885,0.03,186.12,186.11,137.33260279]
[1753554574295,0.03,186.12,186.11,136.62260279]
[1753554575202,0.03,186.12,186.11,137.33260279]
[1753554579300,0.03,186.12,186.11,136.62260279]
[1753554582688,0.03,186.12,186.11,137.33260279]
[1753554583088,0.03,186.12,186.11,99.51260279]
[1753554583293,0.03,186.12,186.11,137.84991943]
[1753554583600,0.03,186.12,186.11,137.31260279]
[1753554585996,0.03,186.12,186.11,180.09728676]
[1753554587800,1e-08,186.12,186.11,180.09728676]
[1753554592094,0.03,186.13,186.11,180.09728676]
[1753554592095,1e-08,186.13,186.11,180.09728676]
[1753554592292,0.1,186.15,186.14,42.78468397]
[1753554592497,0.1,186.15,186.14,174.53135039]
[1753554592697,0.1,186.15,186.14,174.70412035]
[1753554594101,0.1,186.16,186.15,0.28432314]
[1753554594414,0.1,186.16,186.15,18.31620829]
[1753554594615,0.1,186.16,186.15,21.49132158]
[1753554595916,0.1,186.16,186.15,20.78132158]
[1753554596419,0.1,186.16,186.15,26.15333339]
[1753554597712,0.1,186.16,186.15,116.12333334]
[1753554597898,0.1,186.16,186.15,115.58613216]
[1753554598308,1e-08,186.16,186.15,115.58613216]
[1753554599911,0.72000001,186.16,186.15,115.58613216]
[1753554600423,0.72000001,186.16,186.15,153.36613216]
[1753554600597,0.72000001,186.16,186.15,115.58613216]
[1753554600799,0.72000001,186.16,186.15,153.34613216]
[1753554601297,1e-08,186.16,186.15,153.34613216]
[1753554602312,0.28000001,186.18,186.17,29.17511329]
[1753554602515,0.28000001,186.18,186.17,66.93511329]
[1753554602906,9.76741329,186.24,186.17,66.93511329]
[1753554603153,9.76741329,186.24,186.18,3.17511329]
[1753554603423,6.5923,186.24,186.2,5.37056928]
[1753554603598,6.5923,186.24,186.21,37.76]
[1753554604124,6.5923,186.24,186.21,37.26]
[1753554604314,0.72,186.23,186.21,37.26]
[1753554604627,0.72,186.23,186.2,5.37056928]
[1753554604836,0.72,186.23,186.21,37.76]
[1753554605506,0.72,186.23,186.21,43.1302755]
[1753554606804,0.72,186.22,186.21,46.30538879]
[1753554607023,0.72,186.22,186.21,133.10027545]
[1753554607821,0.72,186.22,186.21,95.34027545]
[1753554608002,0.72,186.22,186.21,127.72999995]
[1753554609140,0.72,186.22,186.21,133.10028081]
[1753554610025,0.72,186.24,186.21,136.2753941]
[1753554610325,0.72,186.23,186.21,136.2753941]
[1753554610511,2.3856,186.25,186.22,3.17511329]
[1753554610824,0.72,186.24,186.23,37.74]
[1753554611027,0.72,186.24,186.23,43.10970412]
[1753554612908,0.03,186.25,186.23,43.81970412]
[1753554613114,0.03,186.25,186.24,0.71]
[1753554613531,0.03,186.25,186.23,46.99481741]
[1753554613727,0.03,186.25,186.23,46.28481741]
[1753554614437,0.75,186.25,186.23,43.10970412]
[1753554614640,0.03,186.25,186.23,136.96481736]
[1753554615326,0.03,186.25,186.23,136.25481736]
[1753554616045,0.03,186.25,186.24,3.17511329]
[1753554617952,0.03,186.25,186.24,8.54452909]
[1753554618359,0.03,186.25,186.24,95.33941575]
[1753554618727,0.03,186.25,186.24,98.51452904]
[1753554619055,0.75,186.25,186.24,95.33941575]
[1753554619945,0.75,186.25,186.24,127.70999995]
[1753554620148,0.75,186.25,186.24,133.07941575]
[1753554623061,3.92511329,186.25,186.24,127.70999995]
[1753554624355,0.75,186.25,186.24,37.74]
[1753554628656,3.92511329,186.25,186.24,37.74]
[1753554628871,0.75,186.25,186.24,37.74]
[1753554629749,0.71,186.25,186.24,37.74]
[1753554631437,3.88511329,186.25,186.24,37.74]
[1753554631638,0.71,186.25,186.24,37.74]
[1753554631848,3.88511329,186.25,186.24,37.74]
[1753554632362,3.88511329,186.25,186.21,0.06]
[1753554632569,0.68,186.24,186.22,37.72]
[1753554632745,3.17511329,186.23,186.22,37.72]
[1753554633265,3.85511329,186.23,186.22,37.72]
[1753554635368,0.68,186.23,186.22,37.72]
[1753554635571,0.71,186.25,186.22,43.08993364]
[1753554635756,3.17511329,186.24,186.22,43.08993364]
[1753554635955,0.68,186.24,186.22,43.08993364]
[1753554636277,3.85511329,186.24,186.22,43.08993364]
[1753554637074,3.85511329,186.24,186.22,37.72]
[1753554639445,3.17511329,186.24,186.22,43.77990069]
[1753554639664,3.20511329,186.25,186.22,43.77990069]
[1753554639967,3.88511329,186.25,186.22,43.77990069]
[1753554640168,0.71,186.25,186.22,43.77990069]
[1753554641970,0.03,186.25,186.22,43.08990069]
[1753554642173,0.03,186.25,186.23,0.69]
[1753554642376,3.88511329,186.25,186.22,95.33990064]
[1753554642577,0.68,186.24,186.23,37.7]
[1753554643468,3.85511329,186.24,186.23,37.7]
[1753554644381,0.68,186.24,186.23,37.7]
[1753554644587,3.85511329,186.24,186.23,37.7]
[1753554645275,3.20511329,186.25,186.23,37.7]
[1753554645967,0.03,186.25,186.24,0.69]
[1753554647055,0.03,186.25,186.24,6.0594158]
[1753554647253,0.03,186.25,186.24,9.23452909]
[1753554648853,0.03,186.25,186.24,11.01479592]
[1753554650551,0.03,186.25,186.24,6.0594158]
[1753554650748,0.03,186.25,186.24,11.01479592]
[1753554653893,0.03,186.25,186.24,100.98479587]
[1753554654586,0.03,186.25,186.24,96.02941575]
[1753554654759,0.03,186.25,186.24,100.98479587]
[1753554655180,0.03,186.25,186.24,96.02941575]
[1753554659177,0.72,186.25,186.24,95.33941575]
[1753554659358,0.72,186.25,186.24,133.01941575]
[1753554659885,0.72,186.25,186.24,43.0494158]
[1753554660384,0.03,186.25,186.24,43.0494158]
[1753554661084,0.03,186.25,186.23,5.36970412]
[1753554661274,0.03,186.25,186.24,37.68]
[1753554662260,0.03,186.25,186.24,43.0494158]
[1753554662458,0.03,186.25,186.24,43.7394158]
[1753554662863,0.03,186.25,186.24,48.69479592]
[1753554663566,0.03,186.25,186.24,95.33941575]
[1753554663772,0.03,186.25,186.24,133.01941575]
[1753554664785,5.67538012,186.25,186.22,89.96999995]
[1753554664972,4.95538012,186.23,186.22,89.96999995]
[1753554665171,5.64538012,186.23,186.22,37.68]
[1753554665771,0.69,186.23,186.22,37.68]
[1753554666174,5.64538012,186.23,186.22,37.68]
[1753554667873,5.64538012,186.23,186.21,0.06]
[1753554668077,6.18287004,186.22,186.21,0.06]
[1753554668268,7.77957004,186.22,186.21,0.06]
[1753554669260,13.14956252,186.22,186.21,0.06]
[1753554669795,6.1712,186.21,186.18,37.72]
[1753554669967,4.95538012,186.19,186.18,37.72]
[1753554670171,5.64538012,186.19,186.18,0.06]
[1753554671469,11.01623784,186.19,186.18,0.06]
[1753554671868,27.80092181,186.19,186.18,0.06]
[1753554672079,18.33258397,186.18,186.17,0.06]
[1753554672274,24.51545401,186.18,186.17,0.06]
[1753554672572,24.51545401,186.18,186.14,0.06]
[1753554672774,4.95538012,186.15,186.14,0.06]
[1753554672975,5.49287004,186.15,186.14,0.06]
[1753554673385,6.18287004,186.15,186.14,0.06]
[1753554673789,11.55488185,186.15,186.14,0.06]
[1753554674197,28.33956582,186.15,186.14,0.06]
[1753554675467,54.33956582,186.15,186.14,0.06]
[1753554675792,16.78468397,186.14,186.11,0.0702853]
[1753554676102,4.95538012,186.12,186.11,0.0702853]
[1753554676599,5.64538012,186.12,186.11,0.0702853]
[1753554676973,11.01825783,186.12,186.11,0.0702853]
[1753554677970,27.8029418,186.12,186.11,0.0702853]
[1753554678183,29.3431418,186.12,186.11,0.0702853]
[1753554678400,34.83601184,186.12,186.11,0.0702853]
[1753554679596,60.83601184,186.12,186.11,0.0702853]
[1753554681187,50.9252516,186.12,186.11,0.0702853]
[1753554681399,55.88063172,186.12,186.11,0.0702853]
[1753554687002,60.83601184,186.12,186.11,0.0702853]
[1753554687184,101.31916022,186.12,186.11,0.0702853]
[1753554687507,74.62371601,186.12,186.11,0.0702853]
[1753554687714,96.3637801,186.12,186.11,0.0702853]
[1753554692211,58.6837801,186.12,186.11,0.0702853]
[1753554693913,0.53748992,186.12,186.11,0.7702853]
[1753554694215,5.49287004,186.14,186.11,0.7702853]
[1753554694511,5.49287004,186.14,186.11,0.7]
[1753554695417,5.49287004,186.14,186.11,0.76]
[1753554696484,4.95538012,186.13,186.11,0.76]
[1753554697212,4.95538012,186.12,186.11,0.06]
[1753554698015,5.49287004,186.12,186.11,0.06]
[1753554699014,11.54574775,186.12,186.11,0.06]
[1753554699313,28.33043172,186.12,186.11,0.06]
[1753554700198,54.33043172,186.12,186.11,0.06]
[1753554700408,16.78468397,186.11,186.1,0.06]
[1753554700593,65.05544421,186.11,186.1,0.06]
[1753554702911,65.47323049,186.11,186.1,0.06]
[1753554703307,64.79323049,186.11,186.1,0.06]
[1753554703494,48.00854652,186.11,186.1,0.06]
[1753554703693,10.32854652,186.11,186.1,0.06]
[1753554704922,4.95538012,186.11,186.1,0.76]
[1753554709719,0.53748992,186.12,186.1,0.76]
[1753554709900,4.95538012,186.15,186.1,6.13342031]
[1753554710105,4.95538012,186.15,186.11,0.7]
[1753554715016,5.63538012,186.15,186.12,0.68]
[1753554715503,4.95538012,186.14,186.12,0.68]
[1753554717732,4.95538012,186.13,186.1,0.8102853]
[1753554717903,4.95538012,186.13,186.11,0.68]
[1753554718331,4.98538012,186.14,186.1,0.1302853]
[1753554718501,5.66538012,186.14,186.1,0.1302853]
[1753554720231,5.66538012,186.14,186.1,0.8102853]
[1753554721105,5.66538012,186.14,186.1,6.18370282]
[1753554723537,4.98538012,186.14,186.1,6.18370282]
[1753554723721,5.66538012,186.14,186.1,6.18370282]
[1753554724533,4.98538012,186.14,186.1,6.18370282]
[1753554724710,0.68,186.13,186.1,6.18370282]
[1753554726432,4.98538012,186.14,186.1,6.18370282]
[1753554726734,5.66538012,186.14,186.1,6.18370282]
[1753554727639,4.98538012,186.14,186.1,6.18370282]
[1753554727825,0.68,186.13,186.1,6.18370282]
[1753554728139,0.68,186.13,186.1,0.1302853]
[1753554729535,0.68,186.13,186.1,0.8102853]
[1753554733039,0.68,186.13,186.11,37.64]
[1753554733544,0.03,186.14,186.11,37.64]
[1753554733851,0.71,186.14,186.11,37.64]
[1753554735856,4.98538012,186.14,186.11,37.64]
[1753554736035,0.68,186.13,186.11,37.64]
[1753554738035,4.98538012,186.14,186.11,37.64]
[1753554738283,5.66538012,186.14,186.11,37.64]
[1753554738656,0.71,186.14,186.11,38.32]
[1753554739058,0.03,186.14,186.11,38.32]
[1753554739729,0.03,186.14,186.12,0.68]
[1753554740543,0.03,186.14,186.11,42.59538012]
[1753554740737,0.03,186.14,186.12,0.68]
[1753554745646,0.03,186.14,186.13,5.63538012]
[1753554746837,0.03,186.14,186.13,13.85598012]
[1753554747252,0.03,186.14,186.13,19.22856917]
[1753554749649,0.03,186.14,186.13,5.37258905]
[1753554749831,0.03,186.14,186.13,42.99258905]
[1753554750032,0.03,186.14,186.13,43.67258905]
[1753554750234,0.03,186.14,186.13,42.99258905]
[1753554750728,0.03,186.14,186.13,47.94796917]
[1753554750937,0.03,186.14,186.13,48.62796917]
[1753554757056,0.03,186.14,186.13,47.94796917]
[1753554757456,0.03,186.14,186.13,137.91796912]
[1753554758063,0.03,186.14,186.13,138.59796912]
[1753554759857,0.03,186.14,186.13,137.91796912]
[1753554760848,0.03,186.14,186.13,132.962589]
[1753554761162,5.66538012,186.14,186.1,0.1302853]
[1753554761346,0.68,186.13,186.11,37.66]
[1753554762743,0.68,186.12,186.11,37.66]
[1753554765170,5.63538012,186.12,186.11,37.66]
[1753554766266,0.68,186.12,186.11,37.66]
[1753554766575,0.71,186.14,186.11,43.03315857]
[1753554767374,0.03,186.14,186.11,48.66853869]
[1753554768246,0.71,186.14,186.11,47.98853869]
[1753554769969,0.03,186.14,186.11,48.66853869]
[1753554772477,0.03,186.14,186.13,4.95538012]
[1753554772646,0.03,186.14,186.13,42.53538012]
[1753554773142,0.03,186.14,186.13,43.21538012]
[1753554773543,0.03,186.14,186.13,48.58796917]
[1753554774576,0.03,186.14,186.13,47.90796917]
[1753554775970,0.03,186.14,186.13,48.56796917]
[1753554781587,0.03,186.14,186.13,10.32796917]
[1753554781786,0.71,186.14,186.13,42.95258905]
[1753554783314,0.71,186.14,186.13,47.90796917]
[1753554783791,0.71,186.14,186.11,90.02999995]
[1753554784096,0.71,186.14,186.12,37.58]
[1753554784991,0.68,186.13,186.12,37.58]
[1753554785166,0.71,186.14,186.12,42.95283919]
[1753554785376,0.03,186.14,186.12,42.95283919]
[1753554785999,0.71,186.14,186.12,42.95283919]
[1753554786682,0.03,186.14,186.12,47.90821931]
[1753554786989,0.03,186.14,186.12,48.56821931]
[1753554787493,0.03,186.14,186.12,47.90821931]
[1753554787789,0.03,186.14,186.13,4.95538012]
[1753554788093,0.03,186.14,186.13,5.61538012]
[1753554789996,0.03,186.14,186.13,10.98796917]
[1753554792897,0.03,186.14,186.13,100.98796917]
[1753554793881,0.03,186.14,186.13,101.27229231]
[1753554795923,0.71,186.18,186.14,0.28432314]
[1753554795924,0.03,186.18,186.14,0.28432314]
[1753554796082,0.03,186.18,186.17,31.23970326]
[1753554796280,0.03,186.18,186.17,69.45970326]
[1753554796908,0.03,186.18,186.17,30.95538012]
[1753554797101,0.71,186.18,186.17,68.51538012]
[1753554797281,0.03,186.18,186.17,68.51538012]
[1753554797879,0.03,186.18,186.17,73.88681483]
[1753554800307,0.71,186.18,186.17,73.88681483]
[1753554800888,0.71,186.18,186.17,68.93143471]
[1753554801089,0.71,186.18,186.17,73.88681483]
[1753554801313,0.03,186.18,186.17,73.88681483]
[1753554801481,0.03,186.18,186.17,36.32681483]
[1753554801685,0.71,186.18,186.17,73.88681483]
[1753554801919,0.71,186.18,186.17,68.51538012]
[1753554802084,0.71,186.18,186.17,63.56]
[1753554802292,0.71,186.18,186.17,73.88681483]
[1753554804409,0.71,186.18,186.17,47.88681483]
[1753554805211,0.71,186.18,186.15,126.3271229]
[1753554805395,0.71,186.18,186.16,37.56]
[1753554806004,0.67,186.17,186.16,37.56]
[1753554806623,0.67,186.17,186.16,42.51538012]
[1753554806926,0.7,186.18,186.16,42.51538012]
[1753554807225,0.7,186.18,186.16,47.88694991]
[1753554807644,0.67,186.17,186.16,42.93156979]
[1753554808739,0.67,186.17,186.16,37.56]
[1753554809097,5.62538012,186.17,186.14,0.06]
[1753554809418,0.03,186.18,186.16,4.95538012]
[1753554809599,0.03,186.18,186.17,42.51538012]
[1753554810826,0.03,186.18,186.17,42.93143471]
[1753554811004,0.03,186.18,186.17,47.88681483]
[1753554816724,0.03,186.18,186.17,138.57681483]
[1753554817928,0.03,186.18,186.17,138.86113797]
[1753554819134,0.03,186.18,186.17,141.49220167]
[1753554821028,0.03,186.18,186.17,138.17113797]
[1753554824630,0.03,186.18,186.17,133.21575785]
[1753554824837,0.03,186.18,186.17,138.17113797]
[1753554826626,0.7,186.18,186.17,137.88681483]
[1753554827441,0.7,186.18,186.17,132.93143471]
[1753554827626,0.7,186.18,186.17,137.88681483]
[1753554829043,0.03,186.18,186.17,137.88681483]
[1753554830424,0.03,186.18,186.17,132.93143471]
[1753554830624,0.7,186.18,186.17,137.88681483]
[1753554830949,0.7,186.18,186.17,136.10518173]
[1753554831433,0.03,186.18,186.17,136.10518173]
[1753554834930,0.03,186.18,186.17,137.88958404]
[1753554835547,0.03,186.18,186.17,138.89390718]
[1753554836629,0.03,186.19,186.17,155.67859115]
[1753554836948,0.03,186.19,186.18,32.49958709]
[1753554837133,0.03,186.19,186.18,122.49958709]
[1753554837331,0.03,186.19,186.18,121.96247247]
[1753554837840,0.03,186.19,186.18,127.33361867]
[1753554841738,0.03,186.19,186.18,126.61361867]
[1753554842854,0.03,186.19,186.18,121.65546934]
[1753554843032,0.03,186.19,186.18,126.61361867]
[1753554843553,0.69,186.19,186.18,126.61361867]
[1753554843930,0.03,186.19,186.18,127.33361867]
[1753554845179,0.03,186.19,186.18,126.61361867]
[1753554856744,0.03,186.19,186.18,124.82789376]
[1753554857355,0.03,186.19,186.18,125.54789376]
[1753554858394,1e-08,186.19,186.18,116.33257773]
[1753554860866,1e-08,186.22,186.21,26.28432314]
[1753554861070,1e-08,186.22,186.21,67.01674756]
[1753554861242,1e-08,186.22,186.21,67.73674756]
[1753554862065,1e-08,186.22,186.21,73.10702842]
[1753554862283,0.69,186.25,186.23,0.28432314]
[1753554862457,0.03,186.25,186.24,67.01674756]
[1753554862768,0.69,186.25,186.24,67.01674756]
[1753554864367,0.69,186.25,186.24,72.38616336]
[1753554865469,0.03,186.25,186.24,72.38616336]
[1753554866870,0.03,186.25,186.24,162.38616336]
[1753554867368,0.03,186.25,186.24,163.09616336]
[1753554867873,0.03,186.25,186.24,162.38616336]
[1753554868172,0.7,186.25,186.22,5.36999248]
[1753554868347,0.7,186.25,186.23,37.54]
[1753554868554,0.7,186.25,186.24,3.17242442]
[1753554868768,0.7,186.25,186.24,4.95561114]
[1753554869456,0.7,186.25,186.23,37.54]
[1753554869649,0.7,186.25,186.23,42.49561114]
[1753554870777,0.7,186.25,186.24,5.3694158]
[1753554871171,0.7,186.25,186.24,10.32502694]
[1753554872561,0.7,186.25,186.24,5.3694158]
[1753554872765,0.7,186.25,186.24,100.32502694]
[1753554875882,0.7,186.25,186.24,95.3694158]
[1753554876481,0.7,186.25,186.24,100.32502694]
[1753554876656,0.03,186.25,186.24,100.60935008]
[1753554877366,0.03,186.25,186.24,126.60935008]
[1753554877573,0.7,186.25,186.24,121.3694158]
[1753554877767,0.7,186.25,186.24,132.9094158]
[1753554881083,0.03,186.25,186.24,137.86502694]
[1753554881259,0.03,186.25,186.24,138.57502694]
[1753554881680,0.03,186.25,186.24,138.85935008]
[1753554882065,0.03,186.25,186.24,164.85935008]
[1753554882369,1e-08,186.25,186.24,155.64403405]
[1753554887289,1e-08,186.27,186.26,42.78468397]
[1753554887583,1e-08,186.27,186.26,175.28029511]
[1753554887780,1e-08,186.27,186.26,175.99029511]
[1753554888582,1e-08,186.27,186.26,181.35913436]
[1753554888789,1e-08,186.27,186.26,180.64913436]
[1753554891382,1e-08,186.27,186.26,175.69352322]
[1753554891589,1e-08,186.27,186.26,180.64913436]
[1753554894174,1e-08,186.27,186.26,175.69352322]
[1753554894688,1e-08,186.27,186.26,180.64913436]
[1753554901578,1e-08,186.27,186.26,181.33913436]
[1753554902294,1e-08,186.27,186.26,176.38352322]
[1753554902591,1e-08,186.27,186.26,180.64913436]
[1753554903417,1e-08,186.27,186.26,181.33913436]
[1753554903577,1e-08,186.27,186.26,180.64913436]
[1753554904795,1e-08,186.27,186.26,178.86293791]
[1753554908599,1e-08,186.27,186.26,175.69352322]
[1753554908801,1e-08,186.27,186.26,178.86293791]
[1753554910890,1e-08,186.27,186.26,178.92293791]
[1753554914506,0.65000001,186.27,186.26,178.92293791]
[1753554915610,1e-08,186.27,186.26,178.92293791]
[1753554916006,1e-08,186.27,186.26,175.75352322]